bitfinex/quotes_SOLUSD_20250731
["timestamp","ask_amount","ask_price","bid_price","bid_amount"]
[1753939820642,0.03,181.21,181.2,89.74427325]
[1753939821637,0.03,181.21,181.2,34.67958928]
[1753939821841,0.68,181.21,181.2,69.79876379]
[1753939828640,0.68,181.21,181.2,31.51876379]
[1753939828848,0.68,181.21,181.2,69.79876379]
[1753939829640,0.68,181.21,181.2,31.51876379]
[1753939829844,0.68,181.21,181.2,69.79876379]
[1753939830337,0.03,181.21,181.2,69.79876379]
[1753939833836,0.03,181.21,181.2,31.51876379]
[1753939834147,0.7,181.21,181.2,69.79876379]
[1753939834743,0.03,181.21,181.2,69.79876379]
[1753939835331,0.03,181.21,181.2,75.41902685]
[1753939839331,0.03,181.21,181.2,37.13902685]
[1753939839534,0.03,181.21,181.2,70.47876379]
[1753939839740,0.03,181.21,181.2,75.41902685]
[1753939840056,0.03,181.21,181.2,70.47876379]
[1753939840259,0.03,181.21,181.2,74.73902685]
[1753939842157,0.03,181.21,181.2,69.79876379]
[1753939843556,0.03,181.21,181.2,75.41902685]
[1753939844754,0.03,181.21,181.2,73.63989743]
[1753939845358,0.7,181.21,181.2,69.79876379]
[1753939846767,0.7,181.21,181.2,38.28]
[1753939847255,0.7,181.21,181.2,43.79876379]
[1753939848660,0.7,181.21,181.19,31.51906838]
[1753939848965,0.7,181.21,181.2,38.28]
[1753939849871,0.7,181.21,181.2,43.79876379]
[1753939852168,4.42497281,181.21,181.2,38.28]
[1753939852562,0.7,181.21,181.2,38.28]
[1753939852771,4.4249072,181.21,181.2,38.28]
[1753939854777,3.7549072,181.21,181.2,38.28]
[1753939855664,3.7549072,181.21,181.2,43.79876379]
[1753939856277,0.03,181.21,181.2,43.79876379]
[1753939858484,3.75484125,181.21,181.2,43.79876379]
[1753939864256,4.40484125,181.21,181.2,38.28]
[1753939865880,7.56597489,181.21,181.2,38.28]
[1753939866678,4.40484125,181.21,181.2,38.28]
[1753939866881,7.56597489,181.21,181.2,38.28]
[1753939867184,3.75484125,181.21,181.2,38.28]
[1753939869876,3.75484125,181.21,181.2,38.34]
[1753939872884,167.62233514,181.21,181.2,0.06]
[1753939873090,167.62233514,181.21,181.2,52.08]
[1753939873276,162.96620114,181.21,181.2,52.08]
[1753939875191,162.96620114,181.21,181.2,52.07405517]
[1753939876466,159.1550675,181.21,181.2,52.07405517]
[1753939876683,147.15,181.21,181.2,55.94518881]
[1753939876887,0.03,181.21,181.2,55.94518881]
[1753939877091,0.03,181.21,181.2,52.78405517]
[1753939877272,0.03,181.21,181.2,61.4639526]
[1753939877590,0.03,181.21,181.2,78.24863657]
[1753939878983,0.03,181.21,181.2,106.02579897]
[1753939879387,0.03,181.21,181.2,80.02579897]
[1753939880397,0.03,181.21,181.2,80.57767534]
[1753939881099,0.03,181.23,181.22,47.72298001]
[1753939881271,0.03,181.23,181.22,99.59479548]
[1753939881476,0.03,181.23,181.22,100.30479548]
[1753939882077,0.03,181.23,181.22,105.8229502]
[1753939889191,0.7,181.23,181.22,81.03815472]
[1753939889375,0.7,181.23,181.22,85.97645076]
[1753939889581,0.7,181.23,181.22,81.03815472]
[1753939890196,0.7,181.23,181.22,55.03815472]
[1753939891681,0.03,181.23,181.22,59.97645076]
[1753939891996,0.03,181.23,181.22,60.63645076]
[1753939893318,0.03,181.23,181.22,77.9729502]
[1753939901917,0.03,181.24,181.23,21.72298001]
[1753939902304,0.03,181.24,181.23,22.38298001]
[1753939903299,0.03,181.24,181.23,27.90083025]
[1753939904194,0.7,181.24,181.2,0.05405517]
[1753939904395,4.93829604,181.21,181.17,39.84]
[1753939904599,4.93829604,181.19,181.17,39.84]
[1753939905010,5.60829604,181.19,181.17,39.84]
[1753939905233,5.60829604,181.19,181.18,48.52]
[1753939909120,9.31746641,181.19,181.18,48.52]
[1753939909807,5.60829604,181.19,181.18,48.52]
[1753939914302,0.67,181.19,181.18,48.52]
[1753939914528,5.60829604,181.19,181.18,48.52]
[1753939917928,11.12736442,181.19,181.18,48.52]
[1753939918910,5.60829604,181.19,181.18,48.52]
[1753939927334,4.93829604,181.19,181.18,48.52]
[1753939927530,5.51854004,181.21,181.18,49.19]
[1753939927729,4.93829604,181.19,181.18,49.19]
[1753939932240,5.65829604,181.19,181.18,48.52]
[1753939934928,11.17736442,181.19,181.18,48.52]
[1753939938469,11.17736442,181.19,181.18,0.06]
[1753939938631,11.17736442,181.19,181.18,38.4]
[1753939940838,10.45736442,181.19,181.18,38.4]
[1753939941458,10.45736442,181.19,181.18,0.06]
[1753939941638,10.45736442,181.19,181.18,38.4]
[1753939942248,11.17736442,181.19,181.18,38.4]
[1753939942559,14.88252425,181.19,181.18,38.4]
[1753939943933,14.16252425,181.19,181.18,38.4]
[1753939944835,14.16252425,181.19,181.18,0.06]
[1753939946438,18.28575142,181.19,181.18,0.06]
[1753939946848,14.16252425,181.19,181.18,0.06]
[1753939947041,18.28575142,181.19,181.18,0.06]
[1753939947252,22.41256833,181.19,181.18,0.06]
[1753939949356,27.04401812,181.19,181.18,0.06]
[1753939950637,27.70401812,181.19,181.18,0.06]
[1753939950840,23.07256833,181.19,181.17,38.38]
[1753939951145,21.5521054,181.18,181.17,38.38]
[1753939951548,22.2121054,181.18,181.17,38.38]
[1753939952765,32.66977443,181.18,181.17,0.06]
[1753939952966,28.01116898,181.18,181.17,0.06]
[1753939953139,23.07287294,181.18,181.17,0.06]
[1753939954263,23.10470062,181.18,181.17,0.06]
[1753939956477,28.04299666,181.18,181.17,0.06]
[1753939957956,28.07299666,181.18,181.17,0.06]
[1753939958770,34.02541948,181.18,181.17,0.06]
[1753939959764,21.36220756,181.18,181.17,0.06]
[1753939960360,21.3548681,181.18,181.17,0.06]
[1753939963377,21.35414281,181.18,181.17,0.06]
[1753939964880,15.17476982,181.18,181.17,0.06]
[1753939965052,19.8276701,181.18,181.17,0.78]
[1753939965880,16.66186712,181.18,181.17,0.78]
[1753939966082,15.17476982,181.18,181.17,0.78]
[1753939966262,15.17317102,181.18,181.17,0.78]
[1753939966778,16.95161398,181.18,181.17,0.78]
[1753939972292,32.72842385,181.18,181.17,0.06]
[1753939972583,22.26480492,181.18,181.17,0.06]
[1753939973876,21.60480492,181.18,181.17,0.06]
[1753939977660,22.26480492,181.18,181.17,0.06]
[1753939978281,22.26607515,181.18,181.17,0.06]
[1753939979684,21.60607515,181.18,181.17,0.73]
[1753939979864,16.95317487,181.18,181.17,0.73]
[1753939980063,16.95317487,181.18,181.17,0.06]
[1753939980767,8.67940577,181.18,181.17,0.06]
[1753939980970,16.95499903,181.18,181.17,0.06]
[1753939982182,17.66529008,181.18,181.17,0.06]
[1753939983477,22.31819036,181.18,181.17,0.06]
[1753939984391,22.3414437,181.18,181.17,0.06]
[1753939985600,21.6314437,181.18,181.17,0.06]
[1753939986481,21.6330066,181.18,181.17,0.06]
[1753939986870,19.85382357,181.18,181.17,0.06]
[1753939989291,15.71417299,181.18,181.17,0.06]
[1753939989469,19.85497595,181.18,181.17,0.06]
[1753939989668,12.03362779,181.18,181.17,0.73]
[1753939990377,7.89282483,181.18,181.17,3.89506291]
[1753939990577,3.7550282,181.18,181.17,3.89506291]
[1753939992089,3.7550282,181.18,181.17,9.41474056]
[1753939992478,3.7550282,181.18,181.17,0.73]
[1753939992870,7.89282222,181.18,181.17,0.73]
[1753939994497,3.7550282,181.18,181.17,0.73]
[1753939994677,7.8919966,181.18,181.17,0.73]
[1753939995397,7.89195631,181.18,181.17,0.73]
[1753939995778,3.7550282,181.18,181.17,0.73]
[1753939996908,3.7550282,181.18,181.17,5.67265721]
[1753939997799,3.7550282,181.18,181.17,11.19233486]
[1753939997988,3.7550282,181.18,181.17,49.47233486]
[1753939998195,0.03,181.18,181.17,49.47233486]
[1753939998374,0.03,181.18,181.17,80.41499207]
[1753939998997,0.03,181.18,181.17,75.47233486]
[1753940010496,0.03,181.18,181.17,37.19233486]
[1753940010690,0.03,181.18,181.17,75.47233486]
[1753940011097,0.03,181.18,181.17,37.19233486]
[1753940011402,0.03,181.18,181.17,75.47233486]
[1753940012882,0.03,181.18,181.17,73.69150352]
[1753940015608,0.03,181.18,181.17,103.12349097]
[1753940016184,0.03,181.18,181.17,64.84349097]
[1753940016689,0.03,181.18,181.17,103.12349097]
[1753940019708,0.03,181.18,181.17,52.19618749]
[1753940020284,0.03,181.18,181.17,90.47618749]
[1753940023119,0.03,181.18,181.17,103.12349097]
[1753940023299,0.03,181.18,181.17,77.67545873]
[1753940023300,1e-08,181.18,181.17,77.67545873]
[1753940023509,0.03,181.2,181.19,31.51906838]
[1753940023693,0.03,181.2,181.19,73.51280108]
[1753940024013,0.03,181.2,181.19,74.18280108]
[1753940028598,0.03,181.24,181.23,26.0]
[1753940028800,0.03,181.24,181.23,67.44182587]
[1753940028995,0.03,181.24,181.23,68.11182587]
[1753940030015,0.03,181.24,181.23,73.62967611]
[1753940039230,0.03,181.24,181.23,70.46785024]
[1753940039419,0.03,181.24,181.23,73.62967611]
[1753940046028,0.03,181.24,181.23,72.95967611]
[1753940051235,0.75,181.24,181.19,0.66]
[1753940051429,3.91182587,181.24,181.19,5.51906838]
[1753940051736,0.72,181.23,181.2,64.26]
[1753940052041,0.72,181.23,181.19,8.68089425]
[1753940052230,3.88182587,181.23,181.2,38.28]
[1753940052427,0.72,181.22,181.2,38.28]
[1753940053931,0.72,181.22,181.19,34.68083487]
[1753940054138,0.72,181.22,181.2,38.26]
[1753940054534,0.72,181.22,181.19,34.68083487]
[1753940054921,0.72,181.22,181.2,38.26]
[1753940055237,0.72,181.22,181.21,38.26]
[1753940059918,0.72,181.22,181.19,35.34081757]
[1753940060118,0.72,181.22,181.2,38.92]
[1753940060443,0.72,181.23,181.21,38.26]
[1753940060627,0.72,181.23,181.2,6.17871137]
[1753940060827,0.72,181.23,181.21,38.26]
[1753940063649,0.72,181.23,181.2,6.17871137]
[1753940063850,0.72,181.23,181.21,38.26]
[1753940064147,0.03,181.24,181.22,38.26]
[1753940064346,3.16182587,181.23,181.22,38.26]
[1753940064727,3.88182587,181.23,181.22,38.26]
[1753940065129,3.88182587,181.23,181.18,0.06]
[1753940065130,7.60196439,181.23,181.18,0.06]
[1753940065434,3.16182587,181.2,181.19,38.26]
[1753940065941,7.60156937,181.2,181.19,38.26]
[1753940066245,7.60156937,181.2,181.19,38.28]
[1753940066446,3.88182587,181.2,181.19,38.28]
[1753940066839,7.60156937,181.2,181.19,38.28]
[1753940067346,3.88182587,181.2,181.19,38.28]
[1753940067741,7.60156937,181.2,181.19,38.28]
[1753940068129,3.88182587,181.2,181.19,38.28]
[1753940068547,7.60156937,181.2,181.19,38.28]
[1753940068928,3.88182587,181.2,181.19,38.28]
[1753940069839,3.88182587,181.2,181.18,0.06]
[1753940070039,3.16182587,181.19,181.18,0.06]
[1753940070235,6.8791713,181.19,181.18,0.06]
[1753940070547,7.5791713,181.19,181.18,38.34]
[1753940077030,3.86182587,181.19,181.18,38.34]
[1753940078637,7.98659611,181.19,181.18,0.06]
[1753940078842,11.70394154,181.19,181.18,0.06]
[1753940079356,7.5791713,181.19,181.18,0.06]
[1753940079654,13.09823968,181.19,181.18,0.06]
[1753940081054,29.88292365,181.19,181.18,0.06]
[1753940081356,34.00607428,181.19,181.18,0.06]
[1753940085362,34.00247358,181.19,181.18,0.06]
[1753940088942,34.00132003,181.19,181.18,0.06]
[1753940095670,34.00282922,181.19,181.18,0.06]
[1753940097467,38.12410211,181.19,181.18,0.06]
[1753940098179,38.12546943,181.19,181.18,0.06]
[1753940099047,34.00419654,181.19,181.18,0.06]
[1753940101191,11.00044419,181.19,181.18,0.78]
[1753940101381,7.83861832,181.19,181.18,0.78]
[1753940101557,11.00044419,181.19,181.18,0.78]
[1753940103865,11.00044419,181.19,181.18,0.06]
[1753940104565,11.00044419,181.19,181.18,0.78]
[1753940107501,15.12669134,181.19,181.18,0.78]
[1753940108903,15.1330234,181.19,181.18,0.78]
[1753940109700,15.13461803,181.19,181.18,0.78]
[1753940110310,19.77665115,181.19,181.18,0.06]
[1753940110611,15.13461803,181.19,181.18,0.78]
[1753940110774,11.97279216,181.19,181.18,0.78]
[1753940110978,7.84654501,181.19,181.18,0.78]
[1753940111275,3.71734543,181.19,181.18,0.78]
[1753940116198,0.03,181.2,181.18,42.22182587]
[1753940116388,0.03,181.2,181.19,3.16182587]
[1753940116578,0.03,181.2,181.19,3.88182587]
[1753940118299,0.03,181.2,181.19,9.40089425]
[1753940131413,0.03,181.2,181.19,9.46089425]
[1753940134593,0.7,181.2,181.19,0.06]
[1753940134899,3.86182587,181.2,181.19,0.06]
[1753940135096,3.86182587,181.2,181.19,38.34]
[1753940135512,3.86182587,181.2,181.19,0.06]
[1753940135703,3.86182587,181.2,181.19,38.34]
[1753940138794,3.19182587,181.2,181.19,38.34]
[1753940139925,3.86182587,181.2,181.19,38.34]
[1753940140730,3.19182587,181.2,181.19,38.99]
[1753940140910,3.19182587,181.2,181.19,38.34]
[1753940141312,3.86182587,181.2,181.19,38.34]
[1753940142117,0.7,181.2,181.19,38.34]
[1753940142336,7.5747214,181.2,181.19,38.34]
[1753940142828,3.86182587,181.2,181.19,38.34]
[1753940143146,7.5747214,181.2,181.19,38.34]
[1753940143630,3.86182587,181.2,181.19,38.34]
[1753940143814,7.5747214,181.2,181.19,38.34]
[1753940144018,3.86182587,181.2,181.19,38.34]
[1753940144227,4.41289553,181.2,181.19,38.34]
[1753940144527,3.86182587,181.2,181.19,38.34]
[1753940144723,7.5747214,181.2,181.19,38.34]
[1753940145431,0.7,181.2,181.19,38.34]
[1753940145612,7.5747214,181.2,181.19,38.34]
[1753940146328,3.86182587,181.2,181.19,38.34]
[1753940146645,7.5747214,181.2,181.19,38.34]
[1753940147022,3.86182587,181.2,181.19,38.34]
[1753940147226,7.5747214,181.2,181.19,38.34]
[1753940147412,3.86182587,181.2,181.19,38.34]
[1753940147618,4.41289553,181.2,181.19,38.34]
[1753940147817,3.86182587,181.2,181.19,38.34]
[1753940148030,7.5747214,181.2,181.19,38.34]
[1753940148542,6.9047214,181.2,181.19,38.34]
[1753940148738,3.74289553,181.2,181.19,38.34]
[1753940148928,6.9047214,181.2,181.19,38.34]
[1753940149245,11.03437899,181.2,181.19,38.34]
[1753940150527,7.87255312,181.2,181.19,38.99]
[1753940150734,3.74289553,181.2,181.19,42.15182587]
[1753940150924,0.03,181.2,181.19,42.15182587]
[1753940151124,3.74289553,181.2,181.19,42.15182587]
[1753940151347,0.03,181.2,181.19,42.15182587]
[1753940151524,3.74289553,181.2,181.19,47.67089425]
[1753940151722,0.03,181.2,181.19,47.67089425]
[1753940151931,3.74289553,181.2,181.19,47.67089425]
[1753940152251,0.03,181.2,181.19,47.67089425]
[1753940152431,3.74289553,181.2,181.19,47.67089425]
[1753940152634,0.03,181.2,181.19,47.67089425]
[1753940152956,0.03,181.2,181.19,49.44948131]
[1753940155548,0.03,181.2,181.19,38.99]
[1753940155851,3.75188439,181.2,181.19,38.99]
[1753940156638,0.03,181.2,181.19,38.99]
[1753940159825,0.03,181.2,181.19,49.44948131]
[1753940160954,0.03,181.2,181.19,48.79948131]
[1753940161157,0.03,181.2,181.19,49.46948131]
[1753940164326,0.03,181.2,181.19,66.25416528]
[1753940168166,0.03,181.2,181.19,27.97416528]
[1753940168339,0.03,181.2,181.19,66.25416528]
[1753940172769,0.03,181.2,181.19,64.4751272]
[1753940185475,0.71,181.2,181.19,63.8051272]
[1753940185782,0.03,181.2,181.19,63.8051272]
[1753940186482,0.03,181.2,181.19,64.4751272]
[1753940187587,0.03,181.2,181.19,90.4751272]
[1753940188698,0.03,181.2,181.19,64.4751272]
[1753940188977,0.03,181.2,181.19,65.02703403]
[1753940192280,0.03,181.2,181.19,65.00703403]
[1753940198892,0.03,181.2,181.19,26.74703403]
[1753940199199,0.03,181.2,181.19,65.00703403]
[1753940199993,0.03,181.2,181.19,26.74703403]
[1753940200176,0.03,181.2,181.19,65.00703403]
[1753940202406,0.03,181.22,181.2,16.78468397]
[1753940202575,0.03,181.24,181.23,42.78468397]
[1753940202774,0.03,181.24,181.23,84.20605882]
[1753940202974,0.03,181.24,181.23,84.88605882]
[1753940204495,0.03,181.24,181.23,90.40390906]
[1753940207079,0.03,181.24,181.23,89.72390906]
[1753940207411,0.03,181.24,181.23,90.40390906]
[1753940207885,0.71,181.24,181.23,38.26]
[1753940208079,0.71,181.24,181.23,64.26]
[1753940208290,0.71,181.24,181.23,67.42137485]
[1753940208477,0.71,181.24,181.23,64.26]
[1753940208678,0.71,181.24,181.23,67.42137485]
[1753940209900,0.71,181.24,181.23,69.77785024]
[1753940210106,0.71,181.24,181.23,72.93922509]
[1753940210399,0.71,181.24,181.23,69.77785024]
[1753940210771,0.71,181.24,181.23,72.93922509]
[1753940211281,0.71,181.24,181.23,69.77785024]
[1753940213184,0.71,181.24,181.23,69.79785024]
[1753940213496,0.71,181.24,181.23,31.51785024]
[1753940213910,0.71,181.24,181.23,69.77785024]
[1753940214803,0.71,181.24,181.23,31.51785024]
[1753940215008,0.71,181.24,181.23,69.77785024]
[1753940216881,0.71,181.24,181.22,16.78468397]
[1753940217203,0.71,181.24,181.23,38.26]
[1753940218099,0.03,181.24,181.23,38.26]
[1753940219195,0.03,181.24,181.22,22.30265629]
[1753940219384,0.03,181.24,181.23,38.26]
[1753940220510,0.03,181.24,181.22,22.30265629]
[1753940220805,0.03,181.24,181.23,38.26]
[1753940220989,0.03,181.24,181.23,43.77785024]
[1753940222392,0.03,181.24,181.23,5.51785024]
[1753940222393,0.72,181.24,181.23,5.51785024]
[1753940222594,0.72,181.24,181.23,43.77785024]
[1753940222793,0.72,181.24,181.23,38.26]
[1753940224716,3.88137485,181.24,181.21,26.0]
[1753940224889,0.69,181.23,181.22,38.26]
[1753940232324,0.72,181.24,181.22,38.26]
[1753940238627,0.03,181.24,181.22,38.96]
[1753940239525,0.03,181.24,181.22,43.77801093]
[1753940239723,0.03,181.24,181.23,0.7]
[1753940240811,0.03,181.24,181.22,44.47801093]
[1753940242699,0.03,181.24,181.22,44.53801093]
[1753940244222,0.03,181.24,181.23,0.7]
[1753940248233,0.03,181.24,181.23,6.21785024]
[1753940255044,0.03,181.24,181.23,5.51785024]
[1753940259941,0.03,181.24,181.23,6.23785024]
[1753940260654,0.03,181.24,181.23,26.18390906]
[1753940260854,0.03,181.24,181.23,33.01656185]
[1753940261027,1e-08,181.25,181.24,23.61733676]
[1753940261224,1e-08,181.25,181.24,66.31046618]
[1753940261452,1e-08,181.26,181.24,78.95596558]
[1753940261638,1e-08,181.26,181.25,33.31155822]
[1753940261824,1e-08,181.26,181.25,40.14421101]
[1753940262558,1e-08,181.26,181.25,45.66145238]
[1753940264450,1e-08,181.26,181.25,84.49317651]
[1753940265156,1e-08,181.26,181.25,71.84767711]
[1753940266743,1e-08,181.26,181.25,33.56767711]
[1753940266948,0.65000001,181.26,181.25,55.06468397]
[1753940267243,0.65000001,181.26,181.25,58.22605882]
[1753940267451,1e-08,181.26,181.25,84.22605882]
[1753940267955,1e-08,181.26,181.25,45.94605882]
[1753940268144,1e-08,181.26,181.25,84.24605882]
[1753940268462,1e-08,181.26,181.25,81.08468397]
[1753940268638,1e-08,181.26,181.25,84.24605882]
[1753940271435,1e-08,181.26,181.25,89.76330019]
[1753940271757,1e-08,181.26,181.25,90.48330019]
[1753940274447,1e-08,181.26,181.25,87.32192534]
[1753940274761,1e-08,181.26,181.25,90.48330019]
[1753940275766,1e-08,181.26,181.25,89.76330019]
[1753940276248,1e-08,181.26,181.25,89.74330019]
[1753940276839,1e-08,181.26,181.25,90.46330019]
[1753940280237,1e-08,181.26,181.25,64.46330019]
[1753940280442,1e-08,181.26,181.25,83.94145238]
[1753940281387,1e-08,181.26,181.25,84.49317651]
[1753940282374,1e-08,181.26,181.25,83.94145238]
[1753940285849,1e-08,181.26,181.25,84.00145238]
[1753940286050,1e-08,181.26,181.25,84.55317651]
[1753940286459,1e-08,181.26,181.25,71.90767711]
[1753940301055,1e-08,181.26,181.25,23.63364947]
[1753940301266,0.68000001,181.26,181.25,61.15364947]
[1753940301468,0.68000001,181.26,181.25,64.31502432]
[1753940301659,1e-08,181.26,181.25,64.31502432]
[1753940306365,1e-08,181.26,181.25,64.97502432]
[1753940306884,1e-08,181.26,181.25,66.29117732]
[1753940307187,1e-08,181.26,181.25,65.63117732]
[1753940308482,1e-08,181.26,181.25,27.39117732]
[1753940308704,0.68000001,181.26,181.25,23.67807834]
[1753940308880,0.68000001,181.26,181.25,56.42083697]
[1753940309987,0.68000001,181.26,181.25,61.93807834]
[1753940313292,0.68000001,181.26,181.25,65.09945319]
[1753940315881,0.68000001,181.26,181.25,61.93807834]
[1753940316280,0.68000001,181.26,181.25,65.09945319]
[1753940317300,0.68000001,181.26,181.25,65.07945319]
[1753940317901,0.68000001,181.26,181.25,61.91807834]
[1753940318196,1e-08,181.26,181.25,61.91807834]
[1753940319900,1e-08,181.26,181.25,65.07945319]
[1753940322905,0.67000001,181.26,181.25,65.07945319]
[1753940323091,0.67000001,181.26,181.25,61.91807834]
[1753940324290,1e-08,181.26,181.25,61.91807834]
[1753940325087,0.67000001,181.26,181.25,61.91807834]
[1753940325593,0.67000001,181.26,181.25,23.67807834]
[1753940325803,1e-08,181.26,181.25,61.93807834]
[1753940326695,1e-08,181.26,181.25,23.67807834]
[1753940326896,1e-08,181.26,181.25,61.93807834]
[1753940327098,1e-08,181.26,181.25,62.59807834]
[1753940328604,1e-08,181.26,181.25,65.75945319]
[1753940330502,1e-08,181.26,181.25,65.09945319]
[1753940332092,0.67000001,181.26,181.25,65.09945319]
[1753940333301,1e-08,181.26,181.25,65.09945319]
[1753940334779,1e-08,181.26,181.25,26.83945319]
[1753940334979,1e-08,181.26,181.25,65.07945319]
[1753940340602,1e-08,181.26,181.25,26.83945319]
[1753940340801,1e-08,181.26,181.25,65.07945319]
[1753940343213,1e-08,181.26,181.25,26.83945319]
[1753940343407,1e-08,181.26,181.25,65.07945319]
[1753940344714,1e-08,181.26,181.25,61.91807834]
[1753940345613,1e-08,181.26,181.25,23.67807834]
[1753940345928,1e-08,181.26,181.25,61.91807834]
[1753940346392,1e-08,181.26,181.25,62.61807834]
[1753940347609,1e-08,181.26,181.25,24.37807834]
[1753940347923,1e-08,181.26,181.25,62.61807834]
[1753940348717,1e-08,181.26,181.25,65.77945319]
[1753940349904,1e-08,181.26,181.25,27.53945319]
[1753940350208,1e-08,181.26,181.25,65.77945319]
[1753940352317,1e-08,181.26,181.25,72.61210598]
[1753940353495,1e-08,181.26,181.25,85.25760538]
[1753940366343,0.72000001,181.26,181.25,23.67807834]
[1753940366642,0.72000001,181.26,181.25,65.07945319]
[1753940367006,0.72000001,181.26,181.25,26.83945319]
[1753940367242,0.72000001,181.26,181.25,23.67807834]
[1753940367510,0.72000001,181.26,181.25,91.07945319]
[1753940373736,0.72000001,181.26,181.25,87.91807834]
[1753940374033,0.72000001,181.26,181.25,91.07945319]
[1753940374232,0.72000001,181.26,181.25,87.91807834]
[1753940374432,0.72000001,181.26,181.25,91.07945319]
[1753940376648,0.72000001,181.26,181.25,49.67807834]
[1753940376853,0.72000001,181.26,181.25,91.07945319]
[1753940377648,0.72000001,181.26,181.25,52.83945319]
[1753940377826,0.72000001,181.26,181.25,91.07945319]
[1753940378250,0.72000001,181.26,181.25,87.91807834]
[1753940378448,0.72000001,181.26,181.25,52.83945319]
[1753940378758,0.72000001,181.26,181.25,91.07945319]
[1753940381724,0.72000001,181.26,181.25,87.91807834]
[1753940381926,0.72000001,181.26,181.25,91.07945319]
[1753940382121,0.72000001,181.26,181.25,87.91807834]
[1753940382329,0.72000001,181.26,181.25,91.07945319]
[1753940383531,0.72000001,181.26,181.25,87.91807834]
[1753940383725,0.72000001,181.26,181.25,61.91807834]
[1753940384031,0.72000001,181.26,181.25,39.616153]
[1753940395647,1e-08,181.26,181.25,45.13339437]
[1753940397761,1e-08,181.26,181.25,45.83339437]
[1753940399460,1e-08,181.26,181.25,39.616153]
[1753940399765,0.67000001,181.26,181.25,39.616153]
[1753940400563,1e-08,181.26,181.25,45.13339437]
[1753940400866,1e-08,181.26,181.25,45.82339437]
[1753940402769,1e-08,181.26,181.25,45.13339437]
[1753940403170,1e-08,181.26,181.25,39.616153]
[1753940403474,0.67000001,181.26,181.25,39.616153]
[1753940405967,1e-08,181.26,181.25,39.616153]
[1753940408360,0.67000001,181.26,181.25,39.616153]
[1753940411483,1e-08,181.26,181.25,39.616153]
[1753940417788,1e-08,181.26,181.25,40.306153]
[1753940418289,1e-08,181.26,181.25,39.616153]
[1753940419183,1e-08,181.26,181.25,40.306153]
[1753940419686,0.67000001,181.26,181.25,1.376153]
[1753940419884,0.67000001,181.26,181.25,39.616153]
[1753940420887,7.55702612,181.26,181.25,39.616153]
[1753940424692,7.55702612,181.26,181.25,1.376153]
[1753940424903,7.55702612,181.26,181.25,39.616153]
[1753940429705,4.39565127,181.26,181.25,39.616153]
[1753940429996,7.55702612,181.26,181.25,39.616153]
[1753940433274,6.88702612,181.26,181.25,39.616153]
[1753940435802,3.72565127,181.26,181.25,39.616153]
[1753940440789,3.72565127,181.26,181.25,40.306153]
[1753940441578,3.72565127,181.26,181.25,39.616153]
[1753940442796,3.72174436,181.26,181.25,39.616153]
[1753940443100,6.88311921,181.26,181.25,39.616153]
[1753940445200,3.72174436,181.26,181.25,39.616153]
[1753940447694,3.72174436,181.26,181.25,40.306153]
[1753940449312,3.72174436,181.26,181.25,2.066153]
[1753940449496,3.72174436,181.26,181.25,40.306153]
[1753940451011,7.55311921,181.26,181.25,1.376153]
[1753940451307,25.7155556,181.26,181.25,39.616153]
[1753940451491,29.85179642,181.26,181.25,39.616153]
[1753940451688,29.85179642,181.26,181.25,1.376153]
[1753940453522,29.85056102,181.26,181.25,1.376153]
[1753940454204,26.0,181.24,181.23,0.06]
[1753940454393,41.15199113,181.24,181.23,0.06]
[1753940455313,37.01812462,181.24,181.23,0.06]
[1753940456294,42.53308691,181.24,181.23,0.06]
[1753940457313,43.20308691,181.24,181.23,0.06]
[1753940458724,39.07066499,181.24,181.23,0.06]